bitfinex-derivatives/quotes_BTCF0:USTF0_20250207
["timestamp","ask_amount","ask_price","bid_price","bid_amount"]
[1738938078183,0.00500001,99986.0,99974.0,0.1999797]
[1738938078481,0.11531801,99984.0,99969.0,0.3608]
[1738938078989,0.3608,99983.0,99969.0,0.3608]
[1738938079378,0.1999704,99980.0,99966.0,0.36095004]
[1738938080383,0.1435,99979.0,99966.0,0.36095004]
[1738938081981,0.1495,99979.0,99966.0,0.36095004]
[1738938082183,0.006,99979.0,99978.0,0.5607736]
[1738938083588,1e-08,99986.0,99985.0,0.1999596]
[1738938083779,1e-08,99986.0,99985.0,0.5607596]
[1738938085092,0.00200001,99986.0,99985.0,0.5607596]
[1738938089597,0.00200001,99986.0,99985.0,0.9215596]
[1738938089911,6.062e-05,100000.0,99985.0,0.7216]
[1738938090206,6.062e-05,100000.0,99999.0,0.1999316]
[1738938090406,0.01758855,100000.0,99999.0,0.1999316]
[1738938090802,0.1999365,99997.0,99994.0,0.3608]
[1738938091001,0.1999365,99997.0,99990.0,0.00015004]
[1738938091415,0.01958855,100000.0,99990.0,0.00015004]
[1738938092407,0.01958855,100000.0,99998.0,0.1999319]
[1738938092808,0.01958855,100000.0,99990.0,0.00015004]
[1738938093194,0.01958855,100000.0,99994.0,0.1999415]
[1738938093396,0.01958855,100000.0,99995.0,0.1999382]
[1738938093603,0.01758855,100000.0,99995.0,0.1999381]
[1738938093809,0.01758855,100000.0,99996.0,0.1999364]
[1738938094002,0.01758855,100000.0,99998.0,0.001]
[1738938094708,0.01758855,100000.0,99997.0,0.1999352]
[1738938094905,0.01758855,100000.0,99995.0,0.001]
[1738938095111,0.01758855,100000.0,99995.0,0.2009395]
[1738938095808,0.01758855,100000.0,99995.0,0.001]
[1738938096007,0.01758855,100000.0,99996.0,0.1999374]
[1738938096308,0.01758855,100000.0,99998.0,0.001]
[1738938096505,0.01758855,100000.0,99999.0,0.1999316]
[1738938097910,0.01758855,100000.0,99999.0,0.2009316]
[1738938098307,0.01758855,100000.0,99999.0,0.001]
[1738938098513,0.21751815,100000.0,99999.0,0.001]
[1738938098911,0.01758855,100000.0,99999.0,0.001]
[1738938102613,0.40948245,100030.0,99999.0,0.3618]
[1738938102912,0.54208215,100030.0,100010.0,0.1999031]
[1738938103114,0.54208215,100030.0,100010.0,0.5607031]
[1738938103319,0.54208215,100030.0,100010.0,0.1999031]
[1738938103506,0.90288215,100030.0,100010.0,0.1999031]
[1738938103814,0.90288215,100030.0,100020.0,0.1998896]
[1738938104015,0.35956297,100030.0,100020.0,0.1998896]
[1738938104218,0.35956297,100030.0,100010.0,0.3608]
[1738938104219,0.59936759,100030.0,100010.0,0.36094996]
[1738938104411,0.79924169,100030.0,100010.0,0.56184476]
[1738938104618,0.59936759,100030.0,100020.0,0.1998896]
[1738938105215,0.59936759,100030.0,100020.0,0.2008896]
[1738938106117,0.96016759,100030.0,100020.0,0.2008896]
[1738938106709,0.59936759,100030.0,100020.0,0.5616896]
[1738938107316,0.59936759,100030.0,100020.0,0.5626896]
[1738938107817,0.4703927,100040.0,100020.0,0.5626896]
[1738938107818,0.12976,100040.0,100020.0,0.3628]
[1738938108016,0.129,100040.0,100030.0,0.6952696]
[1738938108315,0.3608,100050.0,100040.0,0.1998496]
[1738938108520,0.4898,100050.0,100040.0,0.1998496]
[1738938108712,0.4898,100050.0,100030.0,0.49592]
[1738938108713,0.51221504,100050.0,100030.0,0.49592]
[1738938108912,0.38321504,100050.0,100040.0,0.1998496]
[1738938109623,0.00076,100060.0,100050.0,0.1998297]
[1738938109822,0.23980462,100070.0,100060.0,0.1998097]
[1738938110122,0.23980462,100070.0,100050.0,0.3608]
[1738938110123,0.43959432,100070.0,100050.0,0.5606246]
[1738938110316,0.43959432,100070.0,100050.0,0.56077456]
[1738938110708,0.43959432,100070.0,100050.0,0.56077446]
[1738938110913,0.46164088,100070.0,100050.0,0.56077446]
[1738938111115,0.46164088,100070.0,100060.0,0.001]
[1738938111312,0.98089118,100070.0,100030.0,0.5606635]
[1738938111509,0.3608,100050.0,100030.0,0.5606635]
[1738938111714,0.1998165,100060.0,100040.0,0.1998469]
[1738938111910,0.1998165,100060.0,100030.0,0.5606545]
[1738938112115,0.5606165,100060.0,100040.0,0.5606455]
[1738938112310,0.1998165,100060.0,100040.0,0.5606455]
[1738938112519,0.66094969,100060.0,100050.0,0.001]
[1738938112722,1.22157689,100060.0,100050.0,0.001]
[1738938113512,1.02174969,100060.0,100040.0,0.00014996]
[1738938113827,0.1998641,100040.0,100020.0,0.3608]
[1738938114511,0.1327,100030.0,100020.0,0.3608]
[1738938114720,0.1327,100030.0,100010.0,0.4961]
[1738938115024,0.3325761,100030.0,100010.0,0.36094996]
[1738938115222,0.3325761,100030.0,100020.0,0.001]
[1738938115614,0.3325761,100030.0,100020.0,0.3618]
[1738938115820,0.3345761,100030.0,100020.0,0.3618]
[1738938116020,0.1347,100030.0,100020.0,0.3618]
[1738938116226,0.1347,100030.0,100020.0,0.5616896]
[1738938116422,0.02402006,100030.0,100020.0,0.5606896]
[1738938116621,0.004,100030.0,100020.0,0.7010896]
[1738938116925,0.004,100030.0,100020.0,0.9716896]
[1738938118223,0.002,100030.0,100020.0,0.9716896]
[1738938118420,0.003,100030.0,100020.0,0.9716896]
[1738938118617,0.001,100030.0,100020.0,0.9716896]
[1738938118817,0.004,100030.0,100020.0,0.9716896]
[1738938119219,0.004,100030.0,100020.0,0.5606896]
[1738938120226,0.2038696,100030.0,100020.0,0.3608]
[1738938120431,0.1998896,100020.0,100010.0,0.36146996]
[1738938120622,0.3279896,100020.0,100010.0,0.36094996]
[1738938120822,0.1281,100020.0,100010.0,0.36094996]
[1738938121023,0.02167578,100040.0,100020.0,0.1998896]
[1738938121236,0.02167578,100040.0,100030.0,0.6985696]
[1738938121738,0.02167578,100040.0,100030.0,1.0593696]
[1738938122723,0.02267578,100040.0,100030.0,1.0593696]
[1738938122928,0.02467578,100040.0,100030.0,1.0603696]
[1738938124029,0.3608,100070.0,100030.0,1.1605]
[1738938124330,0.26191587,100080.0,100070.0,0.1997897]
[1738938124524,0.26191587,100080.0,100070.0,0.5605897]
[1738938124525,0.26115587,100080.0,100070.0,0.5605897]
[1738938124723,0.26115587,100080.0,100070.0,0.6880897]
[1738938124931,0.26115587,100080.0,100070.0,0.5605897]
[1738938125433,0.52515587,100080.0,100070.0,0.5605897]
[1738938125630,0.28648635,100080.0,100070.0,0.5605897]
[1738938126331,0.28648635,100080.0,100070.0,0.5615897]
[1738938126632,0.28648635,100080.0,100070.0,0.5625897]
[1738938127632,0.64705615,100080.0,100070.0,0.002]
[1738938127926,0.94705615,100080.0,100070.0,0.002]
[1738938128630,0.1997897,100070.0,100060.0,0.00014996]
[1738938128928,0.5605897,100070.0,100060.0,0.00014996]
[1738938129241,0.8605897,100070.0,100060.0,0.00014996]
[1738938130129,0.1998496,100040.0,100030.0,0.3608]
[1738938130431,0.1998496,100040.0,100020.0,0.81090884]
[1738938130432,0.1998696,100030.0,100020.0,0.00056]
[1738938130633,0.2683,100030.0,100010.0,0.73180825]
[1738938130823,0.2683,100030.0,100010.0,0.37100825]
[1738938131024,0.1375,100030.0,100010.0,0.73180825]
[1738938131236,0.1375,100030.0,100020.0,0.3608]
[1738938131432,0.13764996,100030.0,100010.0,0.69745546]
[1738938131634,0.69832016,100030.0,100010.0,0.49694996]
[1738938132038,0.49844996,100030.0,100010.0,0.00014996]
[1738938132334,0.5606896,100020.0,100010.0,0.00014996]
[1738938132935,0.1998896,100020.0,100010.0,0.00014996]
[1738938133131,0.5606896,100020.0,100010.0,0.00014996]
[1738938133329,0.6939896,100020.0,100010.0,0.00014996]
[1738938133628,0.1999495,99991.0,99984.0,0.53190275]
[1738938133837,0.41896,100010.0,99984.0,0.17110275]
[1738938134037,0.1999297,100000.0,99984.0,0.17110275]
[1738938134341,0.1999502,99990.0,99984.0,0.17110275]
[1738938134541,0.1999502,99990.0,99980.0,0.00150043]
[1738938134729,0.1999502,99990.0,99980.0,0.00165039]
[1738938135234,0.1999502,99990.0,99984.0,0.001]
[1738938135828,0.3608,99994.0,99984.0,0.001]
[1738938135829,0.3608,99988.0,99984.0,0.001]
[1738938136027,0.1999972,99967.0,99958.0,0.3608]
[1738938136227,0.3608,99971.0,99944.0,0.22859016]
[1738938136436,0.132,99970.0,99949.0,0.30912712]
[1738938136627,0.2000194,99956.0,99949.0,0.17110275]
[1738938136824,0.3608,99963.0,99949.0,0.17110275]
[1738938137029,0.2000289,99951.0,99949.0,0.14608029]
[1738938137234,0.2000396,99945.0,99944.0,0.22803016]
[1738938137427,0.2581996,99945.0,99944.0,0.22803016]
[1738938137624,0.2000536,99938.0,99937.0,0.24981732]
[1738938137846,0.5608536,99938.0,99937.0,0.22563932]
[1738938138137,0.3608,99939.0,99937.0,0.22563932]
[1738938138334,0.2000636,99934.0,99926.0,1e-08]
[1738938138536,0.3608,99929.0,99919.0,0.3608]
[1738938139131,0.3608,99929.0,99889.0,0.3608]
[1738938139340,0.3608,99911.0,99899.0,0.3608]
[1738938139532,0.3608,99911.0,99884.0,0.00150136]
[1738938139533,0.2001265,99902.0,99884.0,0.00150136]
[1738938139836,0.2001289,99901.0,99877.0,0.2097428]
[1738938140030,0.3608,99878.0,99877.0,0.14957706]
[1738938140229,0.41896,99878.0,99877.0,0.03317678]
[1738938140636,0.41896,99878.0,99854.0,0.3608]
[1738938140637,0.2001913,99870.0,99854.0,0.3608]
[1738938140838,0.3608,99870.0,99854.0,0.3608]
[1738938141039,0.3608,99870.0,99855.0,0.2002196]
[1738938141240,0.3608,99870.0,99860.0,0.00010027]
[1738938141441,0.05816,99869.0,99860.0,0.00010027]
[1738938141737,0.05816,99869.0,99862.0,0.200205]
[1738938141938,0.05816,99869.0,99860.0,0.00010027]
[1738938142145,0.2001972,99867.0,99860.0,0.00010027]
[1738938142346,0.2002042,99863.0,99860.0,0.00010027]
[1738938142642,0.5610042,99863.0,99860.0,0.00010027]
[1738938142830,0.2002079,99861.0,99860.0,0.00010027]
[1738938143032,0.2002256,99853.0,99839.0,0.3608]
[1738938143237,0.3608,99852.0,99839.0,0.3608]
[1738938143634,0.200246,99842.0,99830.0,0.3608]
[1738938143838,0.200258,99836.0,99817.0,0.3608]
[1738938144038,0.42016,99841.0,99805.0,0.3608]
[1738938144256,0.3608,99819.0,99805.0,0.3608]
[1738938144740,0.3608,99837.0,99814.0,0.3608]
[1738938144935,0.0582,99836.0,99823.0,0.3608]
[1738938145136,0.0592,99836.0,99835.0,0.008]
[1738938146042,0.001,99836.0,99835.0,0.008]
[1738938146641,0.009,99836.0,99835.0,0.001]
[1738938147740,0.018,99836.0,99835.0,0.002]
[1738938148238,0.009,99836.0,99835.0,0.001]
[1738938148436,0.3788,99836.0,99835.0,0.002]
[1738938148645,0.3788,99836.0,99800.0,0.4608]
[1738938148842,0.3608,99828.0,99812.0,0.3608]
[1738938149045,0.3608,99828.0,99808.0,0.200313]
[1738938149232,0.3608,99828.0,99800.0,0.46132]
[1738938149233,0.2002822,99824.0,99800.0,0.46132]
[1738938149434,0.2002822,99824.0,99800.0,0.4608]
[1738938149941,0.3608,99828.0,99800.0,0.4608]
[1738938150147,0.2002979,99817.0,99800.0,0.4608]
[1738938150442,0.36692001,99828.0,99800.0,0.4608]
[1738938150643,0.3658,99828.0,99808.0,0.3608]
[1738938150953,0.00014996,99820.0,99811.0,0.2003069]
[1738938151151,0.00014996,99820.0,99808.0,0.3608]
[1738938151447,0.2003117,99810.0,99800.0,0.46136]
[1738938151758,0.00014996,99820.0,99808.0,0.3608]
[1738938151953,0.3608,99818.0,99800.0,0.46232]
[1738938152252,0.3608,99818.0,99800.0,0.4618]
[1738938152446,0.00014996,99820.0,99800.0,0.4618]
[1738938152752,0.02190221,99820.0,99811.0,0.2003073]
[1738938152942,0.001,99810.0,99809.0,0.5611121]
[1738938153348,0.0299818,99820.0,99809.0,0.5611121]
[1738938153652,0.004,99818.0,99809.0,0.5611121]
[1738938153846,0.004,99818.0,99809.0,0.3608]
[1738938154155,0.008,99820.0,99811.0,0.001]
[1738938154640,0.008,99820.0,99809.0,0.3608]
[1738938154641,0.3608,99850.0,99819.0,0.3608]
[1738938154847,0.008,99820.0,99819.0,0.561092]
[1738938155054,0.00014996,99830.0,99829.0,0.200272]
[1738938155241,0.00014996,99830.0,99829.0,0.3608]
[1738938155442,0.00014996,99830.0,99821.0,0.5610865]
[1738938155642,0.00014996,99830.0,99821.0,0.2002865]
[1738938155844,0.00014996,99830.0,99814.0,0.3608]
[1738938156154,0.20042076,99830.0,99815.0,0.2002999]
[1738938156347,0.004,99818.0,99815.0,0.2002999]
[1738938156541,0.004,99818.0,99816.0,0.2002975]
[1738938156752,0.006,99820.0,99819.0,0.200292]
[1738938156947,0.00814996,99830.0,99824.0,0.2002811]
[1738938157152,0.01714996,99830.0,99829.0,0.3608]
[1738938157541,0.00914996,99830.0,99829.0,0.3608]
[1738938157746,0.36094996,99830.0,99819.0,0.3608]
[1738938157945,0.2002956,99818.0,99809.0,0.3608]
[1738938158448,0.001,99820.0,99809.0,0.3608]
[1738938159848,0.2042908,99820.0,99809.0,0.3608]
[1738938160044,0.3648,99820.0,99810.0,0.00014996]
[1738938160254,0.200307,99812.0,99810.0,0.00014996]
[1738938160456,0.200307,99812.0,99801.0,0.1456]
[1738938160657,0.3608,99812.0,99801.0,0.1456]
[1738938160847,0.2003082,99811.0,99801.0,0.1456]
[1738938161051,0.3608,99816.0,99801.0,0.5064]
[1738938161359,0.02901092,99820.0,99810.0,0.3618]
[1738938161558,0.02901092,99820.0,99815.0,0.2002995]
[1738938161758,0.02901092,99820.0,99817.0,0.2002954]
[1738938161956,0.02901092,99820.0,99803.0,0.324082]
[1738938162156,0.02901092,99820.0,99816.0,0.2002961]
[1738938162356,0.02901092,99820.0,99811.0,0.3608]
[1738938162653,0.02901092,99820.0,99811.0,0.5611065]
[1738938162856,0.02901092,99820.0,99811.0,0.3608]
[1738938163057,0.02901092,99820.0,99803.0,0.3608]
[1738938163256,0.009,99812.0,99807.0,0.2003151]
[1738938163556,0.4108615,99842.0,99803.0,0.3608]
[1738938163557,0.5610459,99842.0,99827.0,0.2002755]
[1738938163760,0.3608,99855.0,99828.0,0.2002732]
[1738938164062,0.02237752,99830.0,99828.0,0.2002732]
[1738938164362,0.00014996,99830.0,99828.0,0.2002732]
[1738938165552,0.00014996,99830.0,99825.0,0.3608]
[1738938165955,0.00014996,99830.0,99814.0,0.2003015]
[1738938166152,0.00014996,99830.0,99819.0,0.3608]
[1738938166357,0.00414996,99830.0,99819.0,0.3608]
[1738938167060,0.03149605,99830.0,99819.0,0.3608]
[1738938167456,0.03449605,99830.0,99819.0,0.3618]
[1738938167759,0.03449605,99830.0,99828.0,0.2002728]
[1738938167964,0.00150324,99850.0,99819.0,0.3618]
[1738938167965,0.00150324,99850.0,99848.0,0.2002323]
[1738938168153,0.00150324,99850.0,99849.0,0.3608]
[1738938168956,0.20885244,99863.0,99862.0,0.2002058]
[1738938170261,0.00165243,99870.0,99869.0,0.2001917]
[1738938170462,0.00165243,99870.0,99869.0,0.5609917]
[1738938170763,0.05816,99904.0,99869.0,0.3608]
[1738938171058,0.02745944,99891.0,99878.0,0.5609737]
[1738938171257,0.2001504,99890.0,99878.0,0.3608]
[1738938171461,0.3608,99893.0,99878.0,0.3608]
[1738938171655,0.2001484,99891.0,99873.0,0.3608]
[1738938171858,0.2001808,99875.0,99873.0,0.3608]
[1738938172163,0.3608,99884.0,99873.0,0.3608]
[1738938172371,0.2001609,99885.0,99873.0,0.3608]
[1738938172662,0.2001734,99879.0,99873.0,0.3608]
[1738938172854,0.2001734,99879.0,99873.0,0.3618]
[1738938173055,0.2001805,99875.0,99873.0,0.001]
[1738938173255,0.3608,99874.0,99873.0,0.001]
[1738938173557,0.3608,99874.0,99852.0,0.3608]
[1738938173759,0.2001843,99873.0,99857.0,0.2002151]
[1738938173957,0.2001922,99869.0,99853.0,0.1412]
[1738938174163,0.3608,99872.0,99852.0,0.36132]
[1738938174457,0.5610023,99864.0,99852.0,0.3608]
[1738938174660,0.3608,99864.0,99852.0,0.3608]
[1738938174855,0.2001894,99871.0,99852.0,0.3608]
[1738938175066,0.2001926,99869.0,99852.0,0.5610252]
[1738938175265,0.2001926,99869.0,99852.0,0.5615452]
[1738938175662,0.2002007,99865.0,99852.0,0.36132]
[1738938175862,0.3608,99866.0,99852.0,0.3608]
[1738938176163,0.2002102,99860.0,99852.0,0.3608]
[1738938176354,0.3608,99866.0,99850.0,0.00014996]
[1738938176553,0.3608,99856.0,99830.0,0.3608]
[1738938176754,0.3608,99848.0,99830.0,0.3608]
[1738938177260,0.3608,99848.0,99834.0,0.2002611]
[1738938177763,0.3608,99848.0,99830.0,0.3608]
[1738938177972,0.5610344,99848.0,99830.0,0.3608]
[1738938178261,0.3608,99848.0,99830.0,0.3608]
[1738938178467,0.05816,99849.0,99837.0,0.2002553]
[1738938178769,0.2583918,99849.0,99834.0,0.2002614]
[1738938178966,0.41896,99849.0,99830.0,0.3608]
[1738938179361,0.05816,99849.0,99839.0,0.3608]
[1738938179564,0.05816,99849.0,99844.0,0.2002406]
[1738938179758,0.00014996,99850.0,99839.0,0.3608]
[1738938179963,0.00014996,99850.0,99848.0,0.2002338]
[1738938180566,0.00014996,99850.0,99847.0,0.3608]
[1738938180871,0.00014996,99850.0,99848.0,0.2002329]
[1738938181469,0.00014996,99850.0,99847.0,0.3608]
[1738938181781,0.00014996,99850.0,99839.0,0.3608]
[1738938182162,0.00014996,99850.0,99840.0,0.2002496]
[1738938182358,0.00014996,99850.0,99839.0,0.3608]
[1738938182564,0.00014996,99850.0,99848.0,0.5610325]
[1738938183165,0.00014996,99850.0,99848.0,0.3608]
[1738938183865,0.00014996,99850.0,99843.0,0.2002431]
[1738938184170,0.00014996,99850.0,99844.0,0.2002398]
[1738938184368,0.00014996,99850.0,99839.0,0.3608]
[1738938184573,0.14941745,99866.0,99849.0,0.3608]
[1738938184776,0.14941745,99866.0,99865.0,0.5609996]
[1738938184976,0.14941745,99866.0,99865.0,0.9217996]
[1738938186374,0.14941745,99866.0,99865.0,0.7216]
[1738938186575,0.34961505,99866.0,99865.0,0.3608]
[1738938186878,0.14941745,99866.0,99860.0,0.00014996]
[1738938187065,0.2002057,99862.0,99860.0,0.00014996]
[1738938187873,0.3608,99861.0,99860.0,0.00014996]
[1738938188078,0.2002057,99862.0,99860.0,0.00014996]
[1738938188378,0.2002077,99861.0,99860.0,0.00014996]
[1738938189573,0.3608,99862.0,99839.0,0.3608]
[1738938189771,0.3608,99840.0,99818.0,0.2811]
[1738938189972,0.3608,99828.0,99803.0,0.3608]
[1738938190776,0.200297,99817.0,99803.0,0.3608]
[1738938191079,0.3608,99814.0,99805.0,0.2003186]
[1738938191273,0.3608,99828.0,99805.0,0.2003186]
[1738938191476,0.2002911,99820.0,99805.0,0.2003186]
[1738938191872,0.2002911,99820.0,99803.0,0.3618]
[1738938191873,0.2002911,99820.0,99806.0,0.200317]
[1738938192073,0.2002862,99822.0,99803.0,0.3618]
[1738938192272,0.14941745,99825.0,99803.0,0.3618]
[1738938192473,0.3608,99820.0,99803.0,0.3618]
[1738938192673,0.3608,99812.0,99803.0,0.3618]
[1738938193170,0.2003176,99807.0,99803.0,0.3638]
[1738938193371,0.2003176,99807.0,99803.0,0.003]
[1738938193876,0.3608,99812.0,99803.0,0.003]
[1738938194075,0.2003181,99806.0,99805.0,0.006]
[1738938194277,0.3608,99812.0,99803.0,0.003]
[1738938194278,0.2003221,99804.0,99803.0,0.003]
[1738938194476,0.5611221,99804.0,99803.0,0.003]
[1738938194781,0.2003281,99801.0,99800.0,0.07419213]
[1738938195679,0.3608,99804.0,99800.0,0.07419213]
[1738938196179,0.38825295,99804.0,99803.0,0.003]
[1738938196377,0.38825295,99804.0,99785.0,0.3608]
[1738938196676,0.3608,99794.0,99783.0,0.00150302]
[1738938196886,0.2003618,99785.0,99783.0,0.00150302]
[1738938197277,0.3608,99786.0,99767.0,0.3608]
[1738938197474,0.200362,99785.0,99767.0,0.3608]
[1738938197672,0.2691,99793.0,99771.0,0.2003873]
[1738938197976,0.3608,99786.0,99767.0,0.3608]
[1738938198172,0.2003843,99773.0,99767.0,0.3608]
[1738938198477,0.2003891,99771.0,99756.0,0.3608]
[1738938198681,0.2003913,99770.0,99756.0,0.3608]
[1738938198883,0.00014996,99780.0,99756.0,0.3608]
[1738938198884,0.2003796,99776.0,99756.0,0.3608]
[1738938199185,0.00014996,99780.0,99775.0,0.2003788]
[1738938199486,0.00014996,99780.0,99773.0,0.3608]
[1738938199683,0.00014996,99780.0,99765.0,0.3608]
[1738938199891,0.2003802,99776.0,99765.0,0.3608]
[1738938200081,0.00014996,99780.0,99765.0,0.3608]
[1738938200284,0.2003843,99773.0,99765.0,0.3608]
[1738938200585,0.02844564,99780.0,99765.0,0.3608]
[1738938200974,0.3608,99777.0,99756.0,0.003]
[1738938201283,0.2003984,99766.0,99765.0,0.002]
[1738938201489,0.2004225,99754.0,99734.0,0.3608]
[1738938201683,0.2004338,99749.0,99744.0,0.3608]
[1738938201882,0.2004359,99748.0,99744.0,0.3608]
[1738938202083,0.3608,99746.0,99734.0,0.3608]
[1738938202386,0.3608,99746.0,99730.0,0.00150365]
[1738938202582,0.2004687,99731.0,99730.0,0.00150365]
[1738938203084,0.2004978,99717.0,99705.0,0.2882]
[1738938203283,0.17388938,99715.0,99705.0,0.1429]
[1738938203790,0.00014996,99720.0,99709.0,0.3608]
[1738938203979,0.00014996,99720.0,99719.0,0.3608]
[1738938204679,0.02965653,99735.0,99734.0,0.2004427]
[1738938204884,0.02965653,99735.0,99734.0,0.5612427]
[1738938205082,0.14941745,99755.0,99734.0,0.6608]
[1738938205386,0.14941745,99755.0,99752.0,0.3608]
[1738938206391,0.15441745,99755.0,99752.0,0.3608]
[1738938206693,0.15441745,99755.0,99754.0,0.2004024]
[1738938207384,0.16141745,99755.0,99754.0,0.2004024]
[1738938207782,0.16141745,99755.0,99752.0,0.3618]
[1738938207979,0.005,99755.0,99752.0,0.3608]
[1738938208188,0.012,99755.0,99754.0,0.001]
[1738938208583,0.2124004,99755.0,99754.0,0.001]
[1738938208788,0.005,99755.0,99752.0,0.3608]
[1738938208990,0.2004044,99753.0,99752.0,0.3618]
[1738938209288,0.012,99755.0,99752.0,0.3618]
[1738938209692,0.012,99755.0,99753.0,0.2004044]
[1738938209879,0.007,99755.0,99753.0,0.2004044]
[1738938210083,0.012,99755.0,99753.0,0.2004044]
[1738938210491,0.012,99755.0,99754.0,0.001]
[1738938210796,0.012,99755.0,99754.0,0.3618]
[1738938210995,0.0400641,99755.0,99754.0,0.3618]
[1738938211289,0.0400641,99755.0,99754.0,0.3608]
[1738938211991,0.0330641,99755.0,99754.0,0.3608]
[1738938212192,0.012,99755.0,99754.0,0.3618]
[1738938212591,0.007,99755.0,99754.0,0.3618]
[1738938212788,0.005,99755.0,99754.0,0.5622024]
[1738938212989,0.00014996,99760.0,99759.0,0.2003924]
[1738938213188,0.17388938,99780.0,99759.0,0.3608]
[1738938213492,0.2003683,99771.0,99770.0,0.3608]
[1738938213691,0.2003904,99760.0,99759.0,0.3608]
[1738938213884,0.17388938,99780.0,99759.0,0.3608]
[1738938214085,0.3608,99784.0,99770.0,0.3608]
[1738938214086,0.200353,99779.0,99770.0,0.3608]
[1738938214294,0.00014996,99780.0,99770.0,0.3608]
[1738938214889,0.2003653,99773.0,99770.0,0.3608]
[1738938215400,0.2003641,99774.0,99770.0,0.3608]
[1738938215589,0.18303934,99780.0,99770.0,0.3608]
[1738938215891,0.18503934,99780.0,99770.0,0.3608]
[1738938216100,0.2003586,99776.0,99770.0,0.3608]
[1738938216294,0.18503934,99780.0,99770.0,0.3608]
[1738938216295,0.2003663,99772.0,99770.0,0.3608]
[1738938216489,0.2003602,99776.0,99770.0,0.3608]
[1738938216694,0.18303934,99780.0,99770.0,0.3608]
[1738938216695,0.17403934,99780.0,99770.0,0.3608]
[1738938216893,0.00014996,99780.0,99777.0,0.2003548]
[1738938217090,0.00014996,99780.0,99779.0,0.5611522]
[1738938217888,0.00014996,99780.0,99779.0,0.3608]
[1738938218298,0.20050016,99780.0,99779.0,0.3658]
[1738938219198,0.20050016,99780.0,99779.0,0.005]
[1738938219901,0.20050016,99780.0,99770.0,0.3608]
[1738938219902,0.2003616,99775.0,99770.0,0.3608]
[1738938220489,0.2003626,99774.0,99770.0,0.3608]
[1738938221101,0.2003668,99772.0,99770.0,0.3608]
[1738938221490,0.2003668,99772.0,99770.0,0.3618]
[1738938222400,0.2003668,99772.0,99770.0,0.3638]
[1738938222592,0.2003544,99778.0,99770.0,0.3638]
[1738938222789,0.02719048,99780.0,99770.0,0.3618]
[1738938222993,0.02719048,99780.0,99779.0,0.3608]
[1738938224101,0.22754068,99780.0,99779.0,0.3608]
[1738938224404,0.2003574,99777.0,99770.0,0.3608]
[1738938225101,0.004,99778.0,99770.0,0.3608]
[1738938225298,0.004,99778.0,99777.0,0.3608]
[1738938226703,0.14941745,99788.0,99777.0,0.6638]
[1738938226998,0.2003062,99802.0,99791.0,0.2003281]
[1738938226999,0.089006,99792.0,99791.0,0.2003281]
[1738938227302,0.089006,99792.0,99791.0,0.5611281]
[1738938228099,0.089006,99792.0,99791.0,0.9234281]
[1738938229206,0.089006,99792.0,99791.0,0.7231]
[1738938230499,0.2003253,99793.0,99791.0,0.7231]
[1738938230801,0.001,99792.0,99791.0,0.7231]
[1738938231104,0.001,99792.0,99791.0,0.5611281]
[1738938232106,0.6618,99792.0,99741.0,0.3608]
[1738938232311,0.6618,99792.0,99728.0,0.28684395]
[1738938232312,0.2004024,99754.0,99728.0,0.28684395]
[1738938232508,0.3608,99756.0,99728.0,0.28684395]
[1738938232509,0.3608,99747.0,99728.0,0.28684395]
[1738938232804,0.5612177,99747.0,99728.0,0.28684395]
[1738938233005,0.3608,99756.0,99739.0,0.3608]
[1738938233197,0.3608,99753.0,99739.0,0.3608]
[1738938233394,0.3608,99753.0,99740.0,0.00014996]
[1738938233601,0.002,99754.0,99742.0,0.2004254]
[1738938233905,0.002,99754.0,99745.0,0.20042]
[1738938234313,0.002,99754.0,99748.0,0.3608]
[1738938234500,0.00168883,99754.0,99748.0,0.3608]
[1738938234807,0.00168883,99754.0,99749.0,0.00014996]
[1738938235203,0.002,99756.0,99749.0,0.00014996]
[1738938235601,0.20054116,99760.0,99749.0,0.00014996]
[1738938235802,0.005,99753.0,99749.0,0.00014996]
[1738938236406,0.2003942,99759.0,99749.0,0.20056196]
[1738938236604,0.00014996,99760.0,99756.0,0.3608]
[1738938236811,0.00014996,99760.0,99759.0,0.2003923]
[1738938239112,0.00014996,99760.0,99759.0,0.004]
[1738938239514,0.00014996,99760.0,99749.0,0.00414996]
[1738938239706,0.20041,99751.0,99749.0,0.00014996]
[1738938240014,0.3608,99753.0,99749.0,0.00014996]
[1738938240417,0.2004089,99751.0,99749.0,0.00014996]
[1738938240807,0.2004089,99751.0,99749.0,0.00114996]
[1738938241010,0.3608,99753.0,99749.0,0.00114996]
[1738938241517,0.03049676,99760.0,99752.0,0.3608]
[1738938241714,0.03049676,99760.0,99755.0,0.3608]
[1738938241907,0.03049676,99760.0,99749.0,0.00114996]
[1738938241908,0.00814996,99760.0,99756.0,0.3623]
[1738938242109,0.00814996,99760.0,99749.0,0.00114996]
[1738938242110,0.00814996,99760.0,99755.0,0.3608]
[1738938242318,0.2004065,99752.0,99749.0,0.00114996]
[1738938242506,0.002,99753.0,99749.0,0.00014996]
[1738938242709,0.00014996,99760.0,99749.0,0.00014996]
[1738938242710,0.004,99751.0,99749.0,0.00014996]
[1738938243415,0.00114996,99760.0,99749.0,0.00114996]
[1738938243720,0.00114996,99760.0,99750.0,0.3608]
[1738938243908,0.00114996,99760.0,99749.0,0.00114996]
[1738938244115,0.2004091,99751.0,99749.0,0.00114996]
[1738938244520,0.1353,99750.0,99749.0,0.00314996]
[1738938244720,0.1353,99750.0,99727.0,0.3623]
[1738938244920,0.3608,99743.0,99726.0,0.3623]
[1738938245121,0.5612252,99743.0,99724.0,0.6349]
[1738938245417,0.5612252,99743.0,99726.0,0.3608]
[1738938245418,0.2004286,99741.0,99726.0,0.3608]
[1738938245619,0.3608,99743.0,99725.0,0.7231]
[1738938245814,0.3608,99743.0,99725.0,0.3608]
[1738938246010,0.17388938,99740.0,99726.0,0.3623]
[1738938246214,0.3618,99743.0,99734.0,0.3608]
[1738938246512,0.3618,99743.0,99737.0,0.2004361]
[1738938246717,0.3618,99743.0,99739.0,0.2004314]
[1738938246922,0.001,99743.0,99742.0,0.3608]
[1738938247119,0.001,99743.0,99742.0,0.7231]
[1738938247618,0.001,99743.0,99742.0,0.8581]